Cogmind - Beta 10.2 @@@ ROGUE MODE // 2021.09.01 @ 14:07:02 Player: rath Result: Destroyed by D-53 Grenadier with Mini Grenade Launcher Performance ------------- Evolutions (0) 0 Regions Visited (2) 400 Robots Destroyed (17) 85 Value Destroyed (390) 390 Prototype IDs (4) 80 Alien Tech Used (0) 0 Bonus (-130) -130 TOTAL SCORE: 825 Bonus ------- Follower Combat Kills 25 Friendly Fire -155 Cogmind --------- Core Integrity 0/250 Matter 292/300 Energy 250/250 System Corruption 0% Temperature Cool (0) Movement Walking (180) Ox2 Location -10/Mines Parts ------- > --- POWER (1) -------- Ion Engine > --- PROPULSION (2) --- Aluminum Leg > --- UTILITY (2) ------ Large Storage Unit Improved Signal Interpreter > --- WEAPON (2) ------- (None) > --- INVENTORY (10) --- Light Nuclear Core Aluminum Leg Aluminum Leg Improved Heat Sink Medium Storage Unit Medium Storage Unit Large Storage Unit Sensor Array EM Shotgun Light EM Pulse Cannon Peak State ------------ > --- POWER ------------ Ion Engine > --- PROPULSION ------- Aluminum Leg Aluminum Leg > --- UTILITY ---------- Medium Storage Unit Improved Signal Interpreter > --- WEAPON ----------- EM Shotgun Light EM Pulse Cannon > --- INVENTORY -------- Light Nuclear Core Aluminum Leg Aluminum Leg Improved Heat Sink Large Storage Unit Sensor Array Light EM Pulse Cannon Mining Claw [Rating: 11] Favorites ----------- Power Ion Engine Engine Ion Engine Propulsion Aluminum Leg Leg Aluminum Leg Utility Improved Signal Interpreter Device Sensor Array Storage Medium Storage Unit Processor Improved Signal Interpreter Weapon Rocket Launcher Energy Gun EM Shotgun Energy Cannon Light EM Pulse Cannon Ballistic Gun Light Assault Rifle Launcher Rocket Launcher Slashing Weapon Mining Claw Build | -11 -10 -10 ------- Run | Scr Mat Min Slots Evolved . | . . . Power . | . . . Propulsion . | . . . Utility . | . . . Weapon . | . . . Parts Attached 46 | 6 36 4 Power 6 | 1 4 1 Engine 6 | 1 4 1 Core . | . . . Reactor . | . . . Propulsion 14 | 2 11 1 Treads . | . . . Leg 14 | 2 11 1 Wheel . | . . . Hover . | . . . Flight . | . . . Utility 7 | 1 6 . Device 2 | . 2 . Storage 4 | 1 3 . Processor 1 | . 1 . Hackware . | . . . Protection . | . . . Artifact . | . . . Weapon 19 | 2 15 2 Energy Gun 5 | 1 4 . Energy Cannon 2 | . 2 . Ballistic Gun 8 | 1 7 . Ballistic Cannon . | . . . Launcher 2 | . . 2 Special Weapon . | . . . Impact Weapon . | . . . Slashing Weapon 2 | . 2 . Piercing Weapon . | . . . Special Melee Weapon . | . . . Unidentified Prototypes . | . . . Parts Lost 4 | . 1 3 Power 1 | . 1 . Propulsion 1 | . . 1 Utility . | . . . Weapon 2 | . . 2 Highest Loss Streak 3 | . 1 3 Average Slot Usage (%) 99 | . 98 99 Engine 13 | . 13 14 Leg 27 | . 27 28 Device 4 | . 7 . Storage 14 | . 14 14 Processor 8 | . 6 14 Energy Gun 8 | . 11 . Energy Cannon 5 | . 7 . Ballistic Gun 5 | . 7 . Launcher 8 | . . 26 Naked Turns . | . . . Heaviest Build 29 | 10 28 29 Greatest Support 20 | 20 20 20 Greatest Overweight (x) 5 | 2 5 2 Average Overweight (x) . | . . 1 Largest Inventory Capacity 10 | 6 10 10 Average Capacity 8 | 5 8 10 Most Carried 10 | 6 10 10 Average Carried 8 | 4 8 10 Final Capacity 10 | 6 10 10 Final Carried 10 | 6 10 10 Class Distribution -------------------- 87% | Mutant 12% | Scavenger-Mutant Dominant Class ---------------- Mutant | -10/Materials Mutant | -10/Mines Resources | -11 -10 -10 ----------- Run | Scr Mat Min Matter Collected 815 | 228 422 165 Remotely . | . . . Salvage Created 464 | . 390 74 Parts 36 | . 30 6 Haulers Intercepted 1 | . 1 . Recyclers Shooed . | . . . Parts Field Recycled . | . . . Retrieved Matter . | . . . Parts Self-Destructed . | . . . Prevented . | . . . Kills | -11 -10 -10 ------- Run | Scr Mat Min Combat Hostiles Destroyed 17 | . 9 8 Guns 9 | . 9 . AOE 8 | . . 8 Classes Destroyed 7 | . 5 2 Tunneler 1 | . . 1 Hauler 1 | . 1 . Operator 1 | . 1 . Watcher 3 | . 3 . Swarmer 3 | . 3 . Grunt 8 | . 6 2 Assembled 7 | . . 7 Best Kill Streak 8 | . 3 8 Combat Bots Only 7 | . 3 7 Max Kills in Single Turn 3 | . 1 3 Gunslinging . | . . . Exploded 2 | . . 2 Melee . | . . . Uniques/NPCs Destroyed . | . . . Combat | -11 -10 -10 -------- Run | Scr Mat Min Damage Taken 816 | . 439 377 Core 255 | . 185 70 Absorbed by Shields . | . . . Core Remaining (%) 100 | 100 . . Volleys Fired 43 | . 38 5 Largest 2 | . 2 2 Hottest 70 | . 70 66 Shots Fired 86 | . 76 10 Gun 76 | . 76 . Cannon . | . . . Launcher 10 | . . 10 Special . | . . . Kinetic 45 | . 45 . Thermal 31 | . 31 . Explosive 10 | . . 10 Electromagnetic . | . . . Robot Hit Streak 8 | . 8 2 Robot Miss Streak 4 | . 4 3 Penetration Max . | . . . Secondary Targets 3 | . 3 . Max Gunslinging Chain 1 | . 1 . Shots Hit Robots 47 | . 44 3 Core Hits 39 | . 24 15 Critical Hits . | . . . Critical Kills . | . . . Critical Parts Destroyed . | . . . Melee Attacks 14 | . 14 . Impact . | . . . Slashing 14 | . 14 . Piercing . | . . . Sneak Attacks . | . . . Combat Hostiles . | . . . Follow-up Attacks . | . . . Damage Inflicted 1316 | . 477 839 Guns 477 | . 477 . Cannons . | . . . Explosions 839 | . . 839 Melee . | . . . Ramming . | . . . Kinetic 216 | . 216 . Thermal 328 | . 261 67 Explosive 772 | . . 772 Electromagnetic . | . . . Impact . | . . . Slashing . | . . . Piercing . | . . . Highest Corruption . | . . . Average Corruption . | . . . Corruption Purged . | . . . Overload Shots . | . . . Overflow Damage 41 | . . 41 Projectiles . | . . . Explosions 41 | . . 41 Melee . | . . . Knockbacks . | . . . Impact . | . . . Kinetic . | . . . Secondary . | . . . Self-Inflicted Damage 57 | . . 57 Shots 2 | . . 2 Rammed . | . . . Targets Rammed . | . . . Kicked . | . . . Crushed . | . . . Highest Temperature 114 | . 114 18 Average Temperature 33 | . 36 7 Received Heat Transfer 135 | . 126 9 Siege Activations . | . . . Robots Corrupted . | . . . Combat Hostiles . | . . . Parts Fried . | . . . Impact Corruptions . | . . . Robots Melted . | . . . Combat Hostiles . | . . . Parts Melted 2 | . 1 1 Heat Transferred 877 | . 777 100 Parts Sabotaged . | . . . Parts Stolen . | . . . Parts Stripped . | . . . Power Chain Reactions . | . . . Missiles Intercepted . | . . . Alert | -11 -10 -10 ------- Run | Scr Mat Min Peak Influence 162 | . 162 52 Initial . | . . . Average 29 | . 42 2 Maximum Alert Level . | . . . Low Security (%) 100 | 100 100 100 Level 1 . | . . . Level 2 . | . . . Level 3 . | . . . Level 4 . | . . . Level 5 . | . . . High Security . | . . . Max Security . | . . . Squads Dispatched 1 | . 1 . Investigation 1 | . 1 . Extermination . | . . . Reinforcement . | . . . Assault . | . . . Garrison . | . . . Intercept . | . . . Construction Impeded . | . . . Haulers Reinforced . | . . . Stealth | -11 -10 -10 --------- Run | Scr Mat Min Distress Signals 2 | . 2 . Communications Jammed . | . . . Distress Signals . | . . . Times Spotted 29 | . 15 14 Peak Tracking Total 7 | . 3 7 Tactical Retreats 2 | . 1 1 Traps | -11 -10 -10 ------- Run | Scr Mat Min Traps Triggered 8 | . 8 . Indirectly . | . . . Trap Hack Attempts . | . . . Triggered . | . . . Disarmed . | . . . Reprogrammed . | . . . Reused . | . . . Traps Extracted . | . . . Installed . | . . . Triggered . | . . . Machines | -11 -10 -10 ---------- Run | Scr Mat Min Machines Disabled 1 | . . 1 Max in Single Turn 1 | . . 1 Machines Sabotaged . | . . . Garrisons Compromised . | . . . Overloaded Fab Kills . | . . . Fab Network Shutdowns . | . . . Hacking | -11 -10 -10 --------- Run | Scr Mat Min Machines Accessed 9 | . 9 . Terminals 7 | . 7 . Fabricators . | . . . Repair Stations . | . . . Recycling Units 2 | . 2 . Scanalyzers . | . . . Garrison Access . | . . . Total Hacks 23 | . 23 . Successful 13 | . 13 . Failed 10 | . 10 . Catastrophic . | . . . Database Lockouts . | . . . Manual 8 | . 8 . Terminals 17 | . 17 . Fabricators . | . . . Repair Stations . | . . . Recycling Units 6 | . 6 . Scanalyzers . | . . . Garrison Access . | . . . Terminal Hacks 7 | . 7 . Robot Analysis 2 | . 2 . Prototype ID Bank 2 | . 2 . Branch Access Points 1 | . 1 . Hauler Manifests 1 | . 1 . Registered Components 1 | . 1 . Fabricator Hacks . | . . . Repair Station Hacks . | . . . Recycling Unit Hacks 2 | . 2 . Report Inventory 1 | . 1 . Retrieve Matter 1 | . 1 . Scanalyzer . | . . . Garrison Access Hacks . | . . . Unauthorized Hacks 4 | . 4 . Terminals 3 | . 3 . Botnet 2 | . 2 . Operators 1 | . 1 . Fabricators . | . . . Repair Stations . | . . . Recycling Units 1 | . 1 . Mask 1 | . 1 . Scanalyzers . | . . . Garrison Access . | . . . Data Cores Recovered 1 | . 1 . Used . | . . . Hacking Detections 7 | . 7 . Full Trace Events 1 | . 1 . Feedback Events . | . . . Feedback Blocked . | . . . Robot Schematics Acquired . | . . . Robots Built . | . . . Matter . | . . . Time . | . . . Total Robot Build Rating . | . . . Part Schematics Acquired . | . . . Parts Built . | . . . Matter . | . . . Time . | . . . Total Part Build Rating . | . . . Parts Repaired . | . . . Time . | . . . Parts Recycled . | . . . Recycled Matter . | . . . Retrieved Matter . | . . . Retrieved Components . | . . . Parts Scanalyzed . | . . . Part Schematics Acquired . | . . . Parts Damaged . | . . . Bothacking | -11 -10 -10 ------------ Run | Scr Mat Min Used RIF Installer . | . . . Robots Hacked . | . . . Non-combat . | . . . Combat . | . . . Robot Hacks Applied . | . . . Relay Couplers Released . | . . . Robots Rewired . | . . . Allies Hacked . | . . . Hacks Repelled . | . . . Allies | -11 -10 -10 -------- Run | Scr Mat Min Total Allies 3 | . . 3 Largest Group 3 | . . 3 Highest-Rated Group 40 | . . 40 Highest-Rated Ally 16 | . . 16 Total Orders . | . . . Ally Attacks 21 | . . 21 Total Damage 212 | . . 212 Kills 3 | . . 3 Allies Corrupted . | . . . Allies Melted . | . . . Intel | -11 -10 -10 ------- Run | Scr Mat Min Robot Analysis Total 2 | . 2 . Derelict Logs Recovered 1 | . . 1 Drone Launches . | . . . Drone Recoveries . | . . . Exploration | -11 -10 -10 ------------- Run | Scr Mat Min Turns Passed 2935 | 70 1988 877 Spaces Moved 1984 | 53 1366 565 Core 22 | 21 1 . Treads . | . . . Legs 1962 | 32 1365 565 Wheels . | . . . Hover . | . . . Flight . | . . . Fastest Speed 50 | 50 120 150 Average Speed 131 | 101 125 150 Slowest Speed 300 | 150 300 180 Overloaded Moves . | . . . Propulsion Burnouts . | . . . Robots Hopped . | . . . Cave-ins Triggered . | . . . Exploration Rate (%) 66 | 4 99 96 Regions Visited 2 Branch Regions 1 Pre-discovered Areas . | . . . Known Exits Taken 1 | . 1 . Unknown Exits Taken 1 | 1 . . Scrap Searched 2 | . . 2 Spaces Dug 5 | . 5 . Terrain Destroyed 98 | . 5 93 Melee 5 | . 5 . Projectile . | . . . AOE 93 | . . 93 Terrain Rammed . | . . . Walls Destroyed . | . . . Machines Disabled . | . . . Actions | -11 -10 -10 --------- Run | Scr Mat Min Total 2196 | 68 1544 584 Wait 57 | . 49 8 Move 1982 | 52 1365 565 Hop . | . . . Pick Up 27 | 10 17 . Fast Attach 19 | 2 17 . Attach 6 | 4 2 . Detach . | . . . Swap 21 | . 17 4 Drop 27 | . 25 2 Fire 43 | . 38 5 Melee 14 | . 14 . Ram . | . . . Kick . | . . . Crush . | . . . Escape Stasis . | . . . Rewire . | . . . Trap . | . . . Miscellaneous . | . . . Route ------- -11/Scrapyard -10/Materials (discovered 4 exits: *Mat x3 / *Min) -10/Mines (discovered 2 exits: *Mat x2) History --------- Turn | Location | Event 3 | -11/Scrapyard | Discovered new exit (range 15) 71 | -11/Scrapyard | Entered Materials 158 | -10/Materials | Identified exit to Mines 273 | -10/Materials | Discovered new exit (range 3) 304 | -10/Materials | Build established: Mutant 760 | -10/Materials | Core integrity fell below 50% 1075 | -10/Materials | Build established: Scavenger-Mutant 1128 | -10/Materials | Discovered new exit (range 16) 1148 | -10/Materials | Identified exit to Materials 1284 | -10/Materials | Discovered exit to Materials (range 13) 1436 | -10/Materials | Build established: Mutant 2059 | -10/Materials | Entered Mines 2103 | -10/Mines | Discovered exit to Materials (range 9) 2104 | -10/Mines | Assisted by bots powering up and referring to "LRC-V3" 2154 | -10/Mines | Discovered exit to Materials (range 2) 2155 | -10/Mines | Met a Derelict bent on vengeance 2490 | -10/Mines | Assembled infested the area 2524 | -10/Mines | Core integrity fell below 20% 2547 | -10/Mines | Destroyed 7 combat bots 2598 | -10/Mines | Learned Materials stockpile data 2663 | -10/Mines | Found a hidden stash of uninstalled traps 2936 | -10/Mines | Destroyed by D-53 Grenadier with Mini Grenade Launcher Last Messages --------------- 02678_ Acquired 14 matter. 02679_ U-05 Engineer builds a Wall. 02681_ K-01 Serf collects debris. 02683_ U-05 Engineer builds a Wall. 02684_ The unstable cave ceiling collapses. 02690_ Acquired 3 matter. 02691_ Acquired 54 matter. 02694_ K-01 Serf collects debris. 02696_ Acquired 16 matter. 02697_ U-05 Engineer lays Concrete. 02697_ K-01 Serf collects debris. 02705_ Searching scrap... 02705_ Found Heat Sink. 02705_ Found Seismic Analyzer. 02705_ Found Heat Sink. 02705_ Found 22 Matter. 02706_ Acquired 22 matter. 02760_ RR-XUT(g): "VENGEANCE!" 02918_ Rocket Launcher destroyed. 02934_ Aluminum Leg destroyed. Map ----- +----------------------------------------------------+ | ???????????????############ | | ?????????????????????????## | | ???????????????????????### #### ## | | ??????????????????????## ####??# ### | | ??????????????????????# ###?????# #?## ### | | ?????????????####?????# ##???????# #??####?## | | ????????????? ###???######???###### #????????# | | ?????????????# ##???????????# #????????# | | ?????????????# #???????????# ######????????# | | ?????????????# #????######## #######??????## | | ????########?# #?????# #??????? | | ????# #??# #??????# #???????# | | ????# #### #??# ##?###### #??# | | ??### ##?# #??# #??# """ """ """ #?## | | ??# < #?# #### #### #### """ """ """ ######## | | ??# #?# #??# """ """ """ #???## | | ??# #?########### #??# #???# | | ??# #?????#####?# ##?####### #######????# | | ??# #?????# ### ##??????# #??????????# # | | ??# #?????# =## ##?????? #??????????# # | | ??######?????# # ###???? ###????????# # | | ???????????### k # ###?? #????????# # | | ??????????## ##?## #????????# # | | ?????###### #??# #????????# # | | ?????# ##### #????????# | | ?????# @ d ##???????## | | ?????# ## ### #### #????????## | | ?????# ### ##?# ### ## ##????????# | | ?????# #?####### ### # ### #????????# | | ?????# #????# < ##### ##?# ##????????# | | ?????# #????# #????###??## ##?????????## | | ?????# #????# #??????????## #???????????# | | ?????# #????# #???????????# #????######## | | ?????# #????# #???????????# #????#! | | ?????# #????########???????????# #????#!##### | | ?????# ########????????????????# #????# #???## | | ?????# #######??????????# ######!#????## | | ?????# ########### ## #?????? | | ?????## ##### ## ####?????? | | ??????## #???############# ## #????????? | | ???????### ##???????????????# #???????## | | ?????????## ##????????????????#### #???????? | | ??????##### #????????????????????# ###??????? | | ??????# ##????????????????????# # #??????? | | ??????# #?????????????????????# # #??????? | | ??????#### #?????????????????????# # ##?????? | | ?????????## #?????????????????????# ## ##????? | | ??????????####???????????????????### ## ###??? | | ????????????????????????####?????# # # #??? | | ???????????????????????## #????# ###? | +----------------------------------------------------+ Best States ------------- Heat Dissipation 25 Energy Generation 10 Energy Capacity 250 Matter Stores 300 Matter Capacity 300 Sight Range 16 Robot Scan Range 10 Terrain Scan Density 10 Evasion (%) 50 Item Schematics ----------------- None Robot Schematics ------------------ None Fabricated ------------ Nothing Alien Tech Used ----------------- None Achievements -------------- True Hacker Challenges ------------ None Game ------ Seed DerelictScatterShield Manual? 0 Play Time 00:27:45 Cumulative 39.2 hours Start 2021.09.01 @ 13:31:23 End 2021.09.01 @ 14:07:02 Sessions 1 Manual Loads 0 Difficulty Rogue Special Mode None Game No. 15 Rogue 15 Adventurer 0 Explorer 0 Win Type - Total 0 Types 0/0/0/0/0/0/0/0/0 Lore% 30 Gallery% 35 Achievement% 30 Wizard Run 0 Options --------- ASCII 0 Keyboard 0 Movement Mouse Keybinds 0 Fullscreen 1 Font 36/Smallcaps Map View 76x50 Tactical HUD 1 Map Filters NONE Filters NONE Steam 1 RUN: f3c45ab6-608d-43e6-b643-c5f8465349e0